Cogmind - Beta 17 @@@ ROGUE MODE // 2026.08.21 @ 12:16:29 Player: ATOM Result: Destroyed by OX-NZR(R) with Subdweller Laser Performance ------------- Evolutions (0) 0 Regions Visited (2) 400 Robots Destroyed (33) 165 Value Destroyed (797) 797 Prototype IDs (5) 100 Alien Tech Used (0) 0 Bonus (0) 0 TOTAL SCORE: 1462 Bonus ------- None Cogmind --------- Core Integrity 0/250 Matter 300/300 Energy 200/200 System Corruption 1% Temperature Cool (6) Movement Rolling (95) Ox1 Location -10/Subcaves Parts ------- > --- POWER (1) -------- Subdweller Power Source > --- PROPULSION (2) --- Wheel Wheel > --- UTILITY (2) ------ Heat Sink Large Storage Unit > --- WEAPON (2) ------- Riot Gun Slug Cannon > --- INVENTORY (15) --- Ion Engine Light Ion Engine Light Treads Heat Sink Signal Interpreter Particle Cannon Light Cannon Light Cannon Peak State ------------ > --- POWER ------------ Subdweller Power Source > --- PROPULSION ------- Wheel Wheel > --- UTILITY ---------- Heat Sink Large Storage Unit > --- WEAPON ----------- Riot Gun Slug Cannon > --- INVENTORY -------- Ion Engine Light Ion Engine Light Treads Heat Sink Signal Interpreter Particle Cannon Light Cannon Light Cannon Shrapnel Trap Shrapnel Trap [Rating: 14] Favorites ----------- Power Light Ion Engine Engine Light Ion Engine Propulsion Compact Wheel Treads Light Treads Wheel Compact Wheel Utility Light Armor Plating Device Heat Sink Storage Small Storage Unit Protection Light Armor Plating Weapon Light Cannon Energy Gun Small Laser Energy Cannon Particle Cannon Ballistic Gun Light Assault Rifle Ballistic Cannon Light Cannon Launcher Grenade Launcher Build | -11 -10 -10 ------- Run | Yrd Mat Sub Slots Evolved . | . . . Power . | . . . Propulsion . | . . . Utility . | . . . Weapon . | . . . Parts Attached 30 | 6 17 7 Power 6 | 1 4 1 Engine 6 | 1 4 1 Core . | . . . Reactor . | . . . Propulsion 7 | 2 4 1 Treads 2 | 2 . . Leg . | . . . Wheel 5 | . 4 1 Hover . | . . . Flight . | . . . Utility 4 | 1 2 1 Device 1 | . . 1 Storage 2 | 1 1 . Processor . | . . . Hackware . | . . . Protection 1 | . 1 . Artifact . | . . . Weapon 13 | 2 7 4 Energy Gun 2 | 1 . 1 Energy Cannon 1 | . 1 . Ballistic Gun 3 | 1 2 . Ballistic Cannon 6 | . 3 3 Launcher 1 | . 1 . Special Weapon . | . . . Impact Weapon . | . . . Slashing Weapon . | . . . Piercing Weapon . | . . . Special Melee Weapon . | . . . Unidentified Prototypes . | . . . Parts Lost 7 | . 3 4 Power 1 | . 1 . Propulsion 2 | . 1 1 Utility 1 | . . 1 Weapon 3 | . 1 2 Highest Loss Streak 2 | . 2 2 To Critical Strikes . | . . . Average Backups 6 | 1 7 7 Power 1 | . 1 1 Propulsion 2 | . 2 1 Utility 1 | . 1 2 Weapon 1 | . 1 2 Tool/Special . | . . . Unused Backups 4 | . . 4 Power 1 | . . 1 Propulsion . | . . . Utility 3 | . . 3 Weapon . | . . . Tool/Special . | . . . Average Slot Usage (%) 93 | . 92 99 Engine 14 | . 14 14 Treads 7 | . 9 . Wheel 18 | . 16 27 Device 2 | . . 11 Storage 14 | . 14 14 Protection 7 | . 8 2 Energy Gun 2 | . 1 4 Ballistic Gun 7 | . 8 . Ballistic Cannon 10 | . 7 23 Launcher 7 | . 9 . Peak Build Rating 14 | 6 8 14 Average Rating 7 | 4 6 10 On Entrance 4 | . 6 8 Avg Prop Armor Cover (%) . | . . . Naked Turns . | . . . Heaviest Build 36 | 11 33 36 Greatest Support 40 | 40 40 26 Greatest Overweight (x) 2 | . 2 1 Average Overweight (x) . | . . 1 Largest Inventory Capacity 15 | 8 15 15 Average Capacity 11 | 6 10 15 Most Carried 10 | 4 10 10 Average Carried 7 | 2 7 8 Final Capacity 15 | 8 15 15 Final Carried 9 | 4 9 8 Class Distribution -------------------- 100% | Mutant Dominant Class ---------------- Mutant | -10/Materials Mutant | -10/Subcaves Resources | -11 -10 -10 ----------- Run | Yrd Mat Sub Matter Collected 954 | 216 543 195 Remotely . | . . . Salvage Created 653 | . 581 72 Parts 48 | . 40 8 Haulers Intercepted . | . . . Recyclers Shooed . | . . . Parts Field Recycled . | . . . Retrieved Matter . | . . . Parts Self-Destructed 4 | . . 4 Prevented . | . . . Parts Restored . | . . . Kills | -11 -10 -10 ------- Run | Yrd Mat Sub Combat Hostiles Destroyed 26 | . 22 4 Guns 7 | . 7 . Cannons 14 | . 10 4 AOE 5 | . 5 . Classes Destroyed 7 | . 6 1 Worker 2 | . 2 . Recycler 1 | . 1 . Operator 1 | . 1 . Watcher 3 | . 3 . Swarmer 9 | . 9 . Grunt 13 | . 13 . Subdweller 4 | . . 4 Best Kill Streak 5 | . 5 2 Combat Bots Only 5 | . 5 2 Max Kills in Single Turn 2 | . 2 1 Gunslinging . | . . . Exploded 2 | . 2 . Melee . | . . . Uniques/NPCs Destroyed . | . . . Combat | -11 -10 -10 -------- Run | Yrd Mat Sub Hostile Shots Fired 126 | . 88 38 Missed 29 | . 17 12 Hits 97 | . 71 26 Projectile 97 | . 71 26 Critical Strikes 1 | . 1 . Damage Taken 1304 | . 701 603 Core 256 | . 130 126 Absorbed by Shields . | . . . Regen/Repaired (Parts) 33 | . 33 . Core Remaining (%) 100 | 100 . . Volleys Fired 87 | . 73 14 Largest 2 | . 2 2 Hottest 98 | . 98 60 Shots Fired 132 | . 104 28 Gun 47 | . 47 . Cannon 75 | . 47 28 Launcher 10 | . 10 . Special . | . . . Kinetic 105 | . 77 28 Thermal 17 | . 17 . Explosive 10 | . 10 . Electromagnetic . | . . . Robot Hit Streak 11 | . 8 11 Robot Miss Streak 3 | . 3 1 Penetration Max . | . . . Secondary Targets 2 | . 2 . Max Gunslinging Chain 1 | . 1 . Shots Hit Robots 87 | . 65 22 Core Hits 48 | . 40 8 Critical Kills . | . . . Critical Parts Destroyed . | . . . Critical Strikes 2 | . 2 . Blast 2 | . 2 . Melee Attacks . | . . . Impact . | . . . Slashing . | . . . Piercing . | . . . Sneak Attacks . | . . . Combat Hostiles . | . . . Follow-up Attacks . | . . . Damage Inflicted 1722 | . 1338 384 Guns 309 | . 309 . Cannons 940 | . 556 384 Explosions 473 | . 473 . Melee . | . . . Ramming . | . . . Kinetic 1087 | . 703 384 Thermal 162 | . 162 . Explosive 473 | . 473 . Electromagnetic . | . . . Impact . | . . . Slashing . | . . . Piercing . | . . . Highest Corruption 1 | . 1 1 Average Corruption 1 | . 1 1 Corruption Purged . | . . . Corruption Blocked . | . . . Effects 5 | . 3 2 Message Errors 2 | . 2 . Matter Fused 1 | . 1 . Heat Flow Errors 2 | . . 2 Overload Shots . | . . . Overflow Damage 1 | . 1 . Projectiles . | . . . Explosions 1 | . 1 . Melee . | . . . Knockbacks 8 | . 4 4 Impact . | . . . Kinetic 7 | . 3 4 Secondary 1 | . 1 . Self-Inflicted Damage 45 | . 45 . Shots 3 | . 3 . Rammed . | . . . Targets Rammed . | . . . Kicked . | . . . Crushed . | . . . Highest Temperature 312 | . 312 118 Average Temperature 73 | . 73 58 Received Heat Transfer 279 | . 189 90 Effects 1 | . 1 . Matter Decay 1 | . 1 . Siege Activations . | . . . Martial Activations . | . . . Shielding Activations . | . . . Robots Disrupted . | . . . Combat Hostiles . | . . . Robots Corrupted . | . . . Combat Hostiles . | . . . Parts Fried . | . . . Impact Corruptions . | . . . Robots Melted . | . . . Combat Hostiles . | . . . Parts Melted 2 | . 1 1 Heat Transferred 323 | . 323 . Parts Sabotaged . | . . . Parts Stolen . | . . . Parts Stripped . | . . . Power Chain Reactions . | . . . Alert | -11 -10 -10 ------- Run | Yrd Mat Sub Maximum Alert Level . | . . . Low Security (%) 100 | 100 100 . Level 1 . | . . . Level 2 . | . . . Level 3 . | . . . Level 4 . | . . . Level 5 . | . . . High Security . | . . . Max Security . | . . . Peak Influence 190 | . 190 . Initial . | . . . Average 56 | . 59 . Influence Increases 694 | . 694 . Destroy 0b10 Robot/C 440 | . 440 . Destroy 0b10 Robot/NC 35 | . 35 . Destroy Leader 86 | . 86 . Successful Hack 29 | . 29 . Disable Machine 30 | . 30 . Destroy Structure 59 | . 59 . Lose Combat Pursuer 15 | . 15 . Influence Decreases 694 | . 542 152 Entered New Map 74 | . . 74 Time Decay 427 | . 369 58 Lost Part 50 | . 30 20 Purge Threat 143 | . 143 . Squads Dispatched 4 | . 4 . Investigation 3 | . 3 . Extermination . | . . . Reinforcement 1 | . 1 . Assault . | . . . Garrison . | . . . Intercept . | . . . Searches Triggered . | . . . Construction Impeded . | . . . Haulers Reinforced . | . . . Active Scanning Responses . | . . . Cargo Convoy Interrupts . | . . . Stealth | -11 -10 -10 --------- Run | Yrd Mat Sub Distress Signals 1 | . 1 . Communications Jammed . | . . . Distress Signals . | . . . Times Spotted 34 | . 28 6 Peak Tracking Total 5 | . 5 2 Tactical Retreats 1 | . 1 . Traps | -11 -10 -10 ------- Run | Yrd Mat Sub Traps Triggered 5 | . 4 1 Indirectly . | . . . Trap Hack Attempts . | . . . Triggered . | . . . Disarmed . | . . . Reprogrammed . | . . . Reused . | . . . Traps Extracted . | . . . Installed 1 | . . 1 Triggered . | . . . Most Traps Carried 2 | . . 2 Machines | -11 -10 -10 ---------- Run | Yrd Mat Sub Machines Disabled 2 | . 2 . Max in Single Turn 1 | . 1 . Machines Repaired . | . . . Machines Dismantled . | . . . Machines Sabotaged . | . . . Overloaded Fab Kills . | . . . Hacking | -11 -10 -10 --------- Run | Yrd Mat Sub Machines Accessed 10 | . 10 . Terminals 7 | . 7 . Fabricators . | . . . Repair Stations 1 | . 1 . Recycling Units 2 | . 2 . Scanalyzers . | . . . Garrison Access . | . . . Total Hacks 29 | . 29 . Successful 18 | . 18 . Failed 11 | . 11 . Catastrophic . | . . . Database Lockouts . | . . . Manual . | . . . Terminals 21 | . 21 . Fabricators . | . . . Repair Stations 2 | . 2 . Recycling Units 6 | . 6 . Scanalyzers . | . . . Garrison Access . | . . . Terminal Hacks 11 | . 11 . Record 1 | . 1 . Robot Analysis 1 | . 1 . Prototype ID Bank 3 | . 3 . Unreport Threat 1 | . 1 . Dispatch Records 1 | . 1 . Registered Components 1 | . 1 . Zone Layout 3 | . 3 . Fabricator Hacks . | . . . Repair Station Hacks 2 | . 2 . Scan Component 1 | . 1 . Repair 1 | . 1 . Recycling Unit Hacks 5 | . 5 . Recycle Component 1 | . 1 . Process 1 | . 1 . Report Inventory 2 | . 2 . Retrieve Matter 1 | . 1 . Scanalyzer . | . . . Garrison Access Hacks . | . . . Unauthorized Hacks . | . . . Terminals . | . . . Fabricators . | . . . Repair Stations . | . . . Recycling Units . | . . . Scanalyzers . | . . . Garrison Access . | . . . Data Cores Recovered . | . . . Used . | . . . Hacking Detections 6 | . 6 . Full Trace Events 1 | . 1 . Feedback Events . | . . . Feedback Blocked . | . . . Robot Schematics Acquired . | . . . Robots Built . | . . . Authchips . | . . . Time . | . . . Total Robot Build Rating . | . . . Part Schematics Acquired . | . . . Parts Built . | . . . Authchips . | . . . Time . | . . . Total Part Build Rating . | . . . Part Studies Acquired . | . . . Parts Repaired 1 | . 1 . Time 26 | . 26 . Parts Recycled 1 | . 1 . Recycled Matter 26 | . 26 . Retrieved Matter 26 | . 26 . Retrieved Components . | . . . Parts Scanalyzed . | . . . Part Schematics Acquired . | . . . Parts Damaged . | . . . Bothacking | -11 -10 -10 ------------ Run | Yrd Mat Sub Used RIF Installer . | . . . Robots Hacked . | . . . Non-combat . | . . . Combat . | . . . Robot Hacks Applied . | . . . Relay Couplers Released . | . . . Fabnet Peak Effective % . | . . . Robots Rewired . | . . . Allies Hacked . | . . . Hacks Repelled . | . . . Allies | -11 -10 -10 -------- Run | Yrd Mat Sub Total Allies . | . . . Largest Group . | . . . Highest-Rated Group . | . . . Highest-Rated Ally . | . . . Total Orders . | . . . Ally Attacks . | . . . Total Damage . | . . . Kills . | . . . Allies Corrupted . | . . . Allies Melted . | . . . Intel | -11 -10 -10 ------- Run | Yrd Mat Sub Active Infowar (turns) . | . . . Robot Analysis Total 1 | . 1 . Derelict Logs Recovered . | . . . Drone Launches . | . . . Drone Recoveries . | . . . Exploration | -11 -10 -10 ------------- Run | Yrd Mat Sub Turns Passed 1850 | 82 1436 332 Spaces Moved 1293 | 45 975 273 Core 5 | 5 . . Treads 282 | 40 242 . Legs . | . . . Wheels 1006 | . 733 273 Hover . | . . . Flight . | . . . Fastest Speed 50 | 50 80 95 Average Speed 111 | 147 113 97 Slowest Speed 160 | 160 160 105 Overloaded Moves . | . . . Propulsion Burnouts . | . . . Robots Hopped . | . . . Potential Cave-ins . | . . . Cave-ins Triggered . | . . . Exploration Rate (%) 38 | 3 95 18 Regions Visited 2 Branch Regions 1 Pre-discovered Areas . | . . . Known Exits Taken . | . . . Unknown Exits Taken 2 | 1 1 . Scrap Searched 5 | . . 5 Spaces Dug . | . . . Terrain Destroyed 56 | . 56 . Melee . | . . . Projectile . | . . . AOE 56 | . 56 . Terrain Rammed . | . . . Walls Destroyed . | . . . Machines Disabled . | . . . Actions | -11 -10 -10 --------- Run | Yrd Mat Sub Total 1570 | 61 1200 309 Wait 106 | 1 100 5 Move 1291 | 44 974 273 Hop . | . . . Pick Up 38 | 10 22 6 Fast Attach 1 | . 1 . Attach 16 | 6 6 4 Detach . | . . . Swap 17 | . 14 3 Drop 13 | . 10 3 Fire 87 | . 73 14 Melee . | . . . Ram . | . . . Kick . | . . . Crush . | . . . Escape Stasis . | . . . Rewire . | . . . Trap 1 | . . 1 Miscellaneous . | . . . Route ------- -11/Scrapyard -10/Materials (discovered 6 exits: [*Mat x3] / [*Min x2] / [*Sub]) -10/Subcaves History --------- Turn | Location | Event 6 | -11/Scrapyard | Discovered new exit (range 15) 83 | -11/Scrapyard | Entered Materials 83 | -10/Materials | Discovered new exit (range 8) 316 | -10/Materials | Build established: Mutant 395 | -10/Materials | Discovered new exit (range 9) 458 | -10/Materials | Discovered new exit (range 12) 897 | -10/Materials | Repaired Grenade Launcher 955 | -10/Materials | Discovered new exit (range 16) 959 | -10/Materials | Discovered new exit (range 7) 1263 | -10/Materials | Core integrity fell below 50% 1274 | -10/Materials | Discovered new exit (range 13) 1519 | -10/Materials | Entered Subcaves 1520 | -10/Subcaves | Approached by a straggling Scientist 1635 | -10/Subcaves | Core integrity fell below 20% 1835 | -10/Subcaves | Shifting Twisted Machinery released Riot Gun 1851 | -10/Subcaves | Destroyed by OX-NZR(R) with Subdweller Laser Last Messages --------------- 01722_ Searching scrap... 01722_ Found Shrapnel Trap. 01722_ Found Riot Gun. 01722_ Found 53 Matter. 01724_ Acquired Shrapnel Trap. 01726_ Searching scrap... 01726_ Found Sub. Beam Cannon. 01726_ Found Mak. Leg. 01726_ Found 32 Matter. 01730_ Acquired Riot Gun. 01732_ Acquired 10 matter. 01739_ Searching scrap... 01739_ Found Sub. Machine Gun. 01739_ Found Slug Cannon. 01739_ Found 53 Matter. 01741_ Acquired Slug Cannon. 01744_ Acquired 10 matter. Riot Gun falls loose from the Twisted Machinery. 01835_ Dropped Shrapnel Trap. 01840_ Installed Shrapnel Trap. Map ----- +----------------------------------------------------+ | ?????????????????????????????????????????????? | | ???????????????????? ?? ?????????????????????? | | ??????????????????#" ## ?????????????????????? | | ??????????????????" ?????????????????????? | | ??????????????????? ?????????????????????? | | ??????????????????? ?????????????????????? | | ??????????????????? ?????????????????????? | | ??????????????????? ?????????????????????? | | ??????????????????? #?????????????????????? | | ???????????????????# ###???????????????????? | | ???????????????????# ##??????????????????? | | ??????????????????## ##### ????????????? | | ?????????????????## " #????????????? | | ?????????????????# " " #????????????? | | ??????????????????# " " ?????????????? | | ???????????????????# " " ????????????? | | ???????????????????# & """"???????????????? | | ???????????????????#RR## " " ????????????? | | ???????????????????# #?????""[ ?????????????? | | ???????????????????# #??????????????????????? | | ???????????????????# #??????????????????????? | | ???????????????????##^#??????????????????????? | | ???????????????????# ##????""#??????????????? | | ???????????????????# #???"" ???????????????? | | ???????????????????## #???""#???????????????? | | ????????????????????#@###??""#???"???????????? | | ????????????????????# ###""##? ???????????? | | ????????????????????# " " #""##??????????? | | ????????????????????# " " " ##?????????? | | ???????????????????# # # """ #????????? | | ???????????????????###### " "???????? | | ????????????????????# ### ### """ ??????? | | ????????????????????# " ##???#"" ???????? | | ???????????????????## " ##???? ##?????????? | | ???????????????????#""" #### #??????????? | | ???????????????????# #??????????? | | ???????????????????### #??????????? | | ?????????????????????## #??????????? | | ?????????????????????## ### ##??????????? | | ??????????????????#### ##??#####???????????? | | ??????????????????# ##???????????????????? | | ??????????????????# #????????????????????? | | ??????????????##### # ##????????????????????? | | ??????????????# ###?????????????????????? | | ??????????????### #####??????????????????? | | ???????????????## # #??????????????????? | | ???????????????# # #??????????????????? | | ???????????????# # ## #??????????????????? | | ?????????????? # ## #??????????????????? | | ?????????????## ## ##??????????????????? | +----------------------------------------------------+ Best States ------------- Heat Dissipation 35 Energy Generation 15 Energy Capacity 200 Matter Stores 300 Matter Capacity 300 Sight Range 16 Terrain Scan Density 10 Armor Coverage 150 Evasion (%) 44 Recoil Reduction 2 Item Schematics ----------------- None Robot Schematics ------------------ None Fabricated ------------ Nothing Repaired ---------- Grenade Launcher | 45% | -10/Materials Studied --------- None Alien Tech Used ----------------- None Achievements -------------- None Challenges ------------ None Game ------ Seed SpliceSpikedSplitter Manual? 0 Play Time 00:20:18 Cumulative 24.2 hours Start 2026.08.21 @ 11:52:00 End 2026.08.21 @ 12:16:29 Sessions 1 Manual Loads 0 Difficulty Rogue Special Mode None Game No. 38 Rogue 38 Adventurer 0 Explorer 0 Win Type - Total 0 Types 0/0/0/0/0/0/0/0/0/0 Lore% 10 Gallery% 17 Achievement% 16 Wizard Run 0 Options --------- Layout 1 ASCII 0 Keyboard 0 Movement Mouse Keybinds 0 Fullscreen 1 Font 16/SmallcapsGlow Map View 50x40 Zoom Use 0% Tactical HUD 1 Map Filters NONE Filters NONE Steam SD RUN: d0c46bb1-80b5-4f28-a70b-6bd8931747b1